bitfinex/quotes_SOLUSD_20241103
["timestamp","ask_amount","ask_price","bid_price","bid_amount"]
[1730604298932,12.84564782,161.86,161.82,21.6289]
[1730604299134,4.60430872,161.85,161.82,21.6289]
[1730604299319,12.84564782,161.86,161.82,21.6289]
[1730604299724,12.84564782,161.83,161.79,15.4516]
[1730604299928,12.84564782,161.81,161.79,15.4516]
[1730604300328,12.84564782,161.8,161.77,6.1816]
[1730604300741,12.84564782,161.81,161.77,6.1816]
[1730604301040,12.84564782,161.81,161.77,21.6356]
[1730604301623,8.22325853,161.81,161.77,21.6356]
[1730604302737,8.22325853,161.8,161.77,21.6356]
[1730604302916,8.22325853,161.79,161.77,15.454]
[1730604303636,12.85291673,161.79,161.77,15.454]
[1730604304625,12.85291673,161.78,161.77,15.454]
[1730604304825,12.85291673,161.79,161.77,15.454]
[1730604305143,12.85291673,161.78,161.77,15.454]
[1730604306352,12.85291673,161.79,161.77,15.454]
[1730604306927,12.85291673,161.81,161.77,15.454]
[1730604307916,12.85291673,161.8,161.77,15.454]
[1730604308137,12.85291673,161.79,161.77,15.454]
[1730604308842,12.85291673,161.78,161.73,15.4571]
[1730604309140,12.85291673,161.74,161.73,15.4571]
[1730604309441,12.85291673,161.74,161.7,21.6443]
[1730604309641,12.85291673,161.74,161.7,15.4604]
[1730604309957,12.85291673,161.73,161.7,15.4604]
[1730604311538,12.85291673,161.76,161.71,36.62980073]
[1730604311747,12.85291673,161.78,161.72,12.85291673]
[1730604311945,12.85291673,161.73,161.71,23.776884]
[1730604312160,12.85291673,161.72,161.68,28.6092]
[1730604312823,12.85291673,161.71,161.68,22.1522]
[1730604313046,12.85291673,161.71,161.68,15.9674]
[1730604313250,12.85291673,161.71,161.65,46.6945489]
[1730604313251,12.85291673,161.69,161.65,15.7637489]
[1730604313424,12.85291673,161.68,161.65,15.7637489]
[1730604314132,12.85291673,161.68,161.65,21.9499489]
[1730604314333,12.85291673,161.67,161.65,0.2983489]
[1730604314531,31.5808,161.75,161.65,0.2983489]
[1730604314532,12.85291673,161.66,161.65,0.2983489]
[1730604315428,12.85291673,161.69,161.65,0.2983489]
[1730604315625,12.85291673,161.67,161.65,0.2983489]
[1730604316426,12.85291673,161.67,161.65,15.7638489]
[1730604316628,12.85291673,161.68,161.65,15.7638489]
[1730604316838,12.85291673,161.69,161.65,21.9500489]
[1730604317324,12.85291673,161.68,161.65,21.9500489]
[1730604318832,12.85291673,161.7,161.66,23.776884]
[1730604319957,12.85291673,161.73,161.68,23.776884]
[1730604320842,15.0578,161.79,161.7,45.421784]
[1730604320843,12.85291673,161.75,161.7,45.421784]
[1730604321738,12.85291673,161.75,161.7,58.27470073]
[1730604322136,12.85291673,161.75,161.7,45.421784]
[1730604322759,12.85291673,161.77,161.72,23.776884]
[1730604323052,12.85291673,161.77,161.72,36.62980073]
[1730604323226,12.85291673,161.77,161.7,21.6449]
[1730604323227,12.85291673,161.77,161.71,36.62980073]
[1730604323647,12.85291673,161.76,161.71,36.62980073]
[1730604325148,12.85291673,161.76,161.72,6.1835]
[1730604325364,70.0,161.81,161.73,23.776884]
[1730604325365,12.85291673,161.77,161.73,23.776884]
[1730604325656,12.85291673,161.78,161.73,36.62980073]
[1730604325844,12.85291673,161.79,161.73,36.62980073]
[1730604326548,19.03371673,161.8,161.74,12.85291673]
[1730604326759,12.85291673,161.8,161.75,36.62980073]
[1730604326926,12.85291673,161.81,161.76,23.776884]
[1730604327267,12.85291673,161.81,161.77,6.1816]
[1730604327631,12.85291673,161.79,161.76,45.413584]
[1730604327832,12.85291673,161.77,161.74,23.776884]
[1730604328048,12.85291673,161.77,161.73,37.5299]
[1730604328049,12.85291673,161.76,161.73,37.5299]
[1730604328338,12.85291673,161.77,161.73,37.5299]
[1730604329528,12.85291673,161.76,161.73,37.5299]
[1730604329728,12.85291673,161.76,161.73,21.6405]
[1730604331049,70.0,161.73,161.65,0.2983489]
[1730604331258,12.85291673,161.68,161.65,0.2983489]
[1730604331437,70.1,161.73,161.65,0.2983489]
[1730604331438,12.85291673,161.69,161.65,0.2983489]
[1730604331961,12.85291673,161.68,161.65,0.2983489]
[1730604332256,12.85291673,161.72,161.66,36.62980073]
[1730604332438,12.85291673,161.72,161.69,23.776884]
[1730604332644,12.85291673,161.7,161.65,21.9499489]
[1730604332855,70.1,161.75,161.65,21.9499489]
[1730604333056,6.1827,161.74,161.65,21.9499489]
[1730604333550,12.85291673,161.72,161.66,12.85291673]
[1730604333745,12.85291673,161.75,161.69,36.62980073]
[1730604334057,19.03441673,161.78,161.72,12.85291673]
[1730604334268,19.03441673,161.78,161.73,23.776884]
[1730604334759,12.85291673,161.75,161.7,19.35811673]
[1730604334962,12.85291673,161.75,161.71,23.776884]
[1730604335261,12.85291673,161.75,161.71,29.960684]
[1730604335644,12.85291673,161.74,161.7,15.4607]
[1730604335842,12.85291673,161.72,161.67,23.776884]
[1730604336256,12.85291673,161.71,161.67,23.776884]
[1730604336861,12.85291673,161.68,161.66,15.4639]
[1730604338250,12.85291673,161.67,161.65,24.0752329]
[1730604338856,12.85291673,161.68,161.65,0.2983489]
[1730604340366,12.85291673,161.68,161.65,24.0752329]
[1730604340560,12.85291673,161.68,161.65,0.2983489]
[1730604340767,12.85291673,161.67,161.65,0.2983489]
[1730604341757,12.85291673,161.68,161.65,0.2983489]
[1730604344047,6.1839,161.71,161.65,0.2983489]
[1730604344048,12.85291673,161.67,161.65,0.2983489]
[1730604344272,12.85291673,161.68,161.65,0.2983489]
[1730604345567,12.85291673,161.72,161.66,36.62980073]
[1730604345760,12.85291673,161.7,161.66,23.776884]
[1730604345970,12.85291673,161.69,161.66,23.776884]
[1730604346545,12.85291673,161.7,161.66,29.962484]
[1730604346778,12.85291673,161.67,161.65,0.2983489]
[1730604347170,12.85291673,161.68,161.65,6.4844489]
[1730604347362,12.85291673,161.69,161.65,6.4844489]
[1730604347783,70.0,161.73,161.65,6.4844489]
[1730604347784,12.85291673,161.68,161.65,6.4844489]
[1730604348074,12.85291673,161.67,161.65,0.2983489]
[1730604348271,12.85291673,161.68,161.65,0.2983489]
[1730604348572,12.85291673,161.69,161.65,0.2983489]
[1730604348771,19.03761673,161.69,161.65,0.2983489]
[1730604348981,12.85291673,161.69,161.65,0.2983489]
[1730604349151,12.85291673,161.69,161.65,6.4843489]
[1730604349355,12.85291673,161.71,161.66,23.776884]
[1730604349969,12.85291673,161.68,161.65,0.2983489]
[1730604350171,12.85291673,161.67,161.65,0.2983489]
[1730604350655,19.03831673,161.67,161.65,0.2983489]
[1730604351076,12.85291673,161.66,161.65,0.2983489]
[1730604355259,19.03871673,161.66,161.65,0.2983489]
[1730604360953,19.03871673,161.66,161.65,4.89e-05]
[1730604360954,19.13871673,161.66,161.65,4.89e-05]
[1730604361160,19.13871673,161.66,161.57,0.2983489]
[1730604361161,70.0,161.63,161.57,0.2983489]
[1730604361363,12.85291673,161.58,161.57,0.2983489]
[1730604362161,19.04171673,161.58,161.57,0.2983489]
[1730604362981,70.0,161.56,161.52,0.92828032]
[1730604363168,12.85291673,161.53,161.52,0.92828032]
[1730604364389,19.04371673,161.53,161.52,0.92828032]
[1730604366589,19.04371673,161.53,161.5,1.0]
[1730604366768,12.85291673,161.51,161.5,1.0]
[1730604366975,12.85291673,161.52,161.5,1.0]
[1730604367894,12.85291673,161.51,161.5,1.0]
[1730604368583,12.85291673,161.53,161.5,1.0]
[1730604368789,12.85291673,161.51,161.5,1.0]
[1730604371189,12.85291673,161.52,161.5,1.0]
[1730604371888,12.85291673,161.54,161.5,7.1919]
[1730604372199,12.85291673,161.53,161.5,7.1919]
[1730604373490,12.85291673,161.55,161.5,35.52461673]
[1730604373711,12.85291673,161.56,161.5,35.52461673]
[1730604373877,12.85291673,161.55,161.5,35.52461673]
[1730604374275,12.85291673,161.58,161.52,12.85291673]
[1730604374788,12.85291673,161.55,161.5,22.6717]
[1730604374995,12.85291673,161.54,161.5,22.6717]
[1730604376981,12.85291673,161.56,161.5,35.52461673]
[1730604377694,12.85291673,161.55,161.5,35.52461673]
[1730604377891,12.85291673,161.54,161.5,16.4798]
[1730604378898,19.04301673,161.55,161.5,22.6717]
[1730604379689,12.85291673,161.53,161.5,22.6717]
[1730604379998,12.85291673,161.53,161.5,16.4798]
[1730604380882,12.85291673,161.52,161.5,1.0]
[1730604381077,12.85291673,161.51,161.5,1.0]
[1730604381884,6.1896,161.56,161.5,1.0]
[1730604382194,12.85291673,161.55,161.5,1.0]
[1730604382871,19.04291673,161.55,161.5,7.1919]
[1730604383274,12.85291673,161.54,161.5,7.1919]
[1730604383777,12.85291673,161.54,161.5,1.0]
[1730604385477,19.04351673,161.54,161.5,1.0]
[1730604385681,14.44190826,161.54,161.5,1.0]
[1730604386398,6.19,161.55,161.5,30.92290826]
[1730604387305,6.19,161.55,161.5,46.26300826]
[1730604387597,8.25130826,161.55,161.5,38.0117]
[1730604388787,14.44140826,161.55,161.5,38.0117]
[1730604393414,6.1888,161.58,161.54,8.25130826]
[1730604393714,14.43980826,161.59,161.54,8.25130826]
[1730604394600,8.25130826,161.6,161.54,8.25130826]
[1730604395397,8.25130826,161.6,161.54,14.44160826]
[1730604395599,8.25130826,161.59,161.54,6.1903]
[1730604396408,6.1888,161.58,161.54,6.1903]
[1730604397389,6.1888,161.58,161.53,8.25130826]
[1730604397390,8.25130826,161.56,161.52,21.6683]
[1730604397804,8.25130826,161.56,161.52,15.4772]
[1730604397991,8.25130826,161.56,161.52,21.6683]
[1730604398692,8.25130826,161.55,161.5,16.3401]
[1730604398900,8.25130826,161.55,161.5,22.5318]
[1730604400005,8.25130826,161.56,161.5,46.26290826]
[1730604401716,8.25130826,161.58,161.52,8.25130826]
[1730604402010,8.25130826,161.58,161.53,8.25130826]
[1730604403122,14.44040826,161.58,161.53,6.1907]
[1730604403416,8.25130826,161.57,161.53,6.1907]
[1730604404114,8.25130826,161.54,161.5,31.8199]
[1730604404492,8.25130826,161.54,161.5,16.4798]
[1730604404694,8.25130826,161.54,161.5,1.0]
[1730604405516,14.44180826,161.54,161.5,1.0]
[1730604406302,14.44120826,161.56,161.5,30.92270826]
[1730604406504,14.44120826,161.56,161.51,8.25130826]
[1730604407618,14.44120826,161.56,161.5,30.92270826]
[1730604407820,8.25130826,161.55,161.5,30.92270826]
[1730604408814,8.25130826,161.54,161.5,16.4798]
[1730604409012,8.25130826,161.53,161.5,16.4798]
[1730604409219,8.25130826,161.54,161.5,16.4798]
[1730604411608,14.44180826,161.54,161.5,16.4798]
[1730604413214,6.1905,161.54,161.5,16.4798]
[1730604413610,14.44180826,161.54,161.5,16.4798]
[1730604413807,8.25130826,161.55,161.5,16.4798]
[1730604414006,8.25130826,161.55,161.5,30.92300826]
[1730604414210,6.1892,161.57,161.52,8.25130826]
[1730604414798,14.44000826,161.59,161.53,47.74209226]
[1730604415002,85.186,161.63,161.55,8.25130826]
[1730604415003,4.60153105,161.58,161.55,8.25130826]
[1730604415223,8.25130826,161.64,161.58,23.776884]
[1730604415407,4.6016928,161.63,161.61,8.25130826]
[1730604415608,6.1835,161.72,161.63,23.776884]
[1730604415808,4.60519692,161.71,161.63,23.776884]
[1730604416015,70.0,161.75,161.63,23.876884]
[1730604416016,4.60519692,161.7,161.63,23.876884]
[1730604416337,6.182,161.76,161.67,23.776884]
[1730604416522,8.25130826,161.74,161.67,23.776884]
[1730604416718,4.60474402,161.73,161.67,23.776884]
[1730604416907,4.60474402,161.72,161.7,8.25130826]
[1730604417121,8.54965716,161.77,161.71,29.89450826]
[1730604417444,0.2983489,161.77,161.72,32.02819226]
[1730604417631,0.2983489,161.77,161.75,12.84960792]
[1730604419324,0.2983489,161.77,161.75,19.03180792]
[1730604419813,0.2983489,161.77,161.73,19.03230792]
[1730604420015,13.14795682,161.77,161.72,36.62649192]
[1730604420204,12.84960792,161.76,161.71,37.3574]
[1730604420403,12.84960792,161.76,161.71,50.20700792]
[1730604420828,12.84960792,161.73,161.68,6.4785]
[1730604421025,12.84960792,161.73,161.68,12.6634]
[1730604421215,12.84960792,161.73,161.68,25.51300792]
[1730604421418,12.84960792,161.74,161.68,25.51300792]
[1730604421815,12.84960792,161.73,161.68,25.51300792]
[1730604422134,12.84960792,161.71,161.66,15.7139]
[1730604422306,76.1826,161.75,161.64,25.51440792]
[1730604422307,12.84960792,161.7,161.64,25.51440792]
[1730604423124,12.84960792,161.71,161.65,12.84960792]
[1730604424212,12.84960792,161.74,161.69,12.84960792]
[1730604424413,12.84960792,161.75,161.69,12.84960792]
[1730604424819,12.84960792,161.73,161.68,23.776884]
[1730604425019,12.84960792,161.73,161.68,36.62649192]
[1730604425213,12.84960792,161.74,161.68,36.62649192]
[1730604425731,12.84960792,161.74,161.68,42.81129192]
[1730604425933,12.84960792,161.75,161.69,12.84960792]
[1730604426306,0.2983489,161.77,161.72,12.84960792]
[1730604426622,0.2983489,161.77,161.73,12.84960792]
[1730604427006,13.14795682,161.77,161.72,12.84960792]
[1730604427212,12.84960792,161.76,161.71,16.0149]
[1730604427412,12.84960792,161.75,161.71,16.0149]
[1730604427621,12.84960792,161.74,161.69,19.03390792]
[1730604427826,12.84960792,161.74,161.69,6.1843]
[1730604428323,12.84960792,161.73,161.68,52.08909192]
[1730604428529,12.84960792,161.73,161.68,58.27409192]
[1730604429847,13.14795682,161.77,161.72,12.84960792]
[1730604430011,0.2983489,161.77,161.73,12.84960792]
[1730604430211,0.2983489,161.77,161.76,12.84960792]
[1730604430737,0.2983489,161.77,161.76,36.62649192]
[1730604431735,0.2983489,161.77,161.76,42.80839192]
[1730604432229,0.2983489,161.77,161.76,62.80839192]
[1730604432430,0.2983489,161.77,161.76,75.65799984]
[1730604432736,0.2983489,161.86,161.77,43.976884]
[1730604432936,0.2983489,161.86,161.84,12.84960792]
[1730604433441,0.2983489,161.86,161.83,23.776884]
[1730604433937,0.2983489,161.86,161.83,29.956084]
[1730604434236,13.14795682,161.86,161.82,15.4491]
[1730604434435,13.14795682,161.86,161.82,21.6288]
[1730604434736,0.2983489,161.86,161.82,21.6288]
[1730604435134,0.2983489,161.86,161.82,34.47840792]
[1730604435632,0.2983489,161.86,161.84,12.84960792]
[1730604436031,0.2983489,161.86,161.83,29.955784]
[1730604437023,19.32615682,161.86,161.82,15.4491]
[1730604437218,12.84960792,161.85,161.82,15.4491]
[1730604437927,0.2983489,161.86,161.82,15.4491]
[1730604438232,0.2983489,161.86,161.83,12.84960792]
[1730604438434,0.2983489,161.86,161.84,12.84960792]
[1730604438633,0.2983489,161.86,161.83,23.776884]
[1730604439238,0.2983489,161.86,161.83,36.62649192]
[1730604439726,0.2983489,161.86,161.83,42.80549192]
[1730604440237,13.14795682,161.86,161.82,15.4491]
[1730604440423,12.84960792,161.85,161.82,15.4491]
[1730604440735,12.84960792,161.84,161.79,6.1806]
[1730604441035,12.84960792,161.85,161.79,19.03020792]
[1730604441424,12.84960792,161.84,161.79,19.03020792]
[1730604441632,12.84960792,161.84,161.79,12.84960792]
[1730604441831,12.84960792,161.84,161.79,28.30170792]
[1730604442037,12.84960792,161.85,161.8,23.776884]
[1730604442230,19.32625682,161.86,161.8,36.62649192]
[1730604442841,12.84960792,161.84,161.8,29.957084]
[1730604443944,12.84960792,161.82,161.79,15.4521]
[1730604444247,12.84960792,161.82,161.76,19.05750792]
[1730604444449,12.84960792,161.81,161.77,6.1815]
[1730604444836,12.84960792,161.81,161.76,21.6368]
[1730604445141,12.84960792,161.8,161.76,21.6368]
[1730604445928,12.84960792,161.8,161.76,15.4549]
[1730604447943,12.84960792,161.81,161.76,28.30450792]
[1730604448246,19.02930792,161.82,161.76,28.30450792]
[1730604449123,19.02930792,161.82,161.76,34.48640792]
[1730604449636,12.84960792,161.81,161.76,34.48640792]
[1730604449845,12.84960792,161.8,161.76,21.6368]
[1730604450039,12.84960792,161.8,161.76,15.4549]
[1730604451650,12.84960792,161.84,161.74,12.84960792]
[1730604451651,12.84960792,161.77,161.74,6.1827]
[1730604452028,12.84960792,161.78,161.74,6.1827]
[1730604452230,12.84960792,161.79,161.74,21.6396]
[1730604453335,70.0,161.85,161.77,12.84960792]
[1730604453336,12.84960792,161.82,161.77,12.84960792]
[1730604454537,19.02930792,161.82,161.76,34.48640792]
[1730604454748,12.84960792,161.8,161.76,21.6368]
[1730604455832,12.84960792,161.78,161.75,6.1823]
[1730604456048,12.84960792,161.78,161.74,29.959484]
[1730604456251,12.84960792,161.78,161.74,45.416384]
[1730604457251,12.84960792,161.76,161.73,15.9018]
[1730604457466,12.84960792,161.8,161.74,36.62649192]
[1730604458549,19.03010792,161.8,161.75,6.1823]
[1730604459745,12.84960792,161.79,161.75,6.1823]
[1730604461061,12.84960792,161.77,161.73,37.5424]
[1730604461258,12.84960792,161.79,161.74,23.776884]
[1730604461560,19.02930792,161.82,161.76,12.84960792]
[1730604461748,19.02930792,161.82,161.77,23.776884]
[1730604463053,19.02930792,161.82,161.78,6.1812]
[1730604464358,12.84960792,161.81,161.78,6.1812]
[1730604464568,12.84960792,161.8,161.78,6.1812]
[1730604465048,21.6252,161.85,161.78,6.1812]
[1730604465049,12.84960792,161.82,161.78,6.1812]
[1730604465367,12.84960792,161.83,161.78,21.6342]
[1730604465861,12.84960792,161.82,161.78,21.6342]
[1730604467056,6.1794,161.83,161.78,21.6342]
[1730604467057,12.84960792,161.81,161.78,21.6342]
[1730604467440,12.84960792,161.79,161.76,6.1816]
[1730604467637,12.84960792,161.78,161.75,21.638]
[1730604467943,12.84960792,161.76,161.69,34.49580792]
[1730604468151,12.84960792,161.75,161.69,34.49580792]
[1730604468446,70.0,161.81,161.69,34.49580792]
[1730604468447,12.84960792,161.76,161.7,12.84960792]
[1730604469050,12.84960792,161.78,161.72,12.84960792]
[1730604469255,12.84960792,161.78,161.73,23.776884]
[1730604469459,12.84960792,161.77,161.74,6.1827]
[1730604469757,12.84960792,161.77,161.73,21.6404]
[1730604472555,12.84960792,161.76,161.73,21.6404]
[1730604472753,12.84960792,161.74,161.71,6.1836]
[1730604473373,12.84960792,161.76,161.71,6.1836]
[1730604474567,12.84960792,161.75,161.71,6.1836]
[1730604475874,12.84960792,161.75,161.69,12.84960792]
[1730604476051,12.84960792,161.75,161.7,45.421784]
[1730604478258,12.84960792,161.77,161.71,12.84960792]
[1730604478456,12.84960792,161.8,161.75,36.62649192]
[1730604478656,12.84960792,161.81,161.76,23.776884]
[1730604478856,12.84960792,161.82,161.76,36.62649192]
[1730604479550,12.84960792,161.82,161.78,23.776884]
[1730604479766,12.84960792,161.83,161.78,23.776884]
[1730604480246,12.84960792,161.84,161.78,12.84960792]
[1730604480445,6.1787,161.85,161.79,34.48250792]
[1730604480446,19.02830792,161.85,161.79,34.48250792]
[1730604480650,12.84960792,161.82,161.79,15.4521]
[1730604480872,12.84960792,161.82,161.77,6.1812]
[1730604481056,12.84960792,161.81,161.77,6.1812]
[1730604481467,12.84960792,161.82,161.77,6.1812]
[1730604482373,12.84960792,161.84,161.79,12.84960792]
[1730604482666,12.84960792,161.84,161.78,36.62649192]
[1730604482870,12.84960792,161.81,161.77,21.6352]
[1730604483080,12.84960792,161.8,161.77,21.6352]
[1730604483274,12.84960792,161.8,161.77,15.454]
[1730604483951,12.84960792,161.79,161.75,22.696]
[1730604484447,12.84960792,161.79,161.75,16.5137]
[1730604484657,12.84960792,161.76,161.72,6.1831]
[1730604484859,12.84960792,161.74,161.71,15.3786]
[1730604485367,12.84960792,161.73,161.7,15.4604]
[1730604485574,12.84960792,161.73,161.68,7.11225633]
[1730604485763,12.84960792,161.72,161.68,7.11225633]
[1730604486472,12.84960792,161.73,161.68,19.96186425]
[1730604486857,12.84960792,161.73,161.68,7.11225633]
[1730604487058,12.84960792,161.73,161.68,19.96186425]
[1730604488277,12.84960792,161.74,161.68,19.96186425]
[1730604488476,12.84960792,161.75,161.69,12.84960792]
[1730604488868,12.84960792,161.75,161.69,36.62649192]
[1730604489573,12.84960792,161.73,161.68,35.42446425]
[1730604489880,12.84960792,161.74,161.68,35.42446425]
[1730604490075,12.84960792,161.73,161.68,35.42446425]
[1730604490255,12.84960792,161.74,161.68,35.42446425]
[1730604490878,19.03260792,161.74,161.68,35.42446425]
[1730604492881,12.84960792,161.73,161.68,22.57485633]
[1730604493266,19.03260792,161.74,161.68,35.42446425]
[1730604493969,76.183,161.74,161.68,0.92735633]
[1730604494278,76.183,161.74,161.65,21.6512]
[1730604494279,12.84960792,161.69,161.65,21.6512]
[1730604494477,12.84960792,161.71,161.65,34.50080792]
[1730604495263,19.03360792,161.71,161.65,34.50080792]
[1730604496164,12.84960792,161.73,161.68,12.84960792]
[1730604496364,19.03270792,161.74,161.68,12.84960792]
[1730604497768,19.03270792,161.74,161.68,28.31190792]
[1730604497967,12.84960792,161.71,161.68,15.4623]
[1730604498277,6.1831,161.74,161.68,15.4623]
[1730604498278,12.84960792,161.73,161.68,15.4623]
[1730604498461,12.84960792,161.73,161.68,34.49690792]
[1730604498663,12.84960792,161.72,161.68,21.6473]
[1730604500362,12.84960792,161.73,161.68,21.6473]
[1730604500778,12.84960792,161.74,161.69,12.84960792]
[1730604501086,12.84960792,161.74,161.68,34.49690792]
[1730604501665,12.84960792,161.72,161.67,12.84960792]
[1730604502072,12.84960792,161.73,161.67,12.84960792]
[1730604502291,12.84960792,161.74,161.68,12.84960792]
[1730604502882,19.03270792,161.74,161.68,19.03430792]
[1730604504082,19.03270792,161.74,161.69,12.84960792]
[1730604504688,12.84960792,161.76,161.7,12.84960792]
[1730604505087,12.84960792,161.75,161.69,29.48850792]
[1730604505295,12.84960792,161.74,161.69,29.48850792]
[1730604505603,12.84960792,161.73,161.67,12.84960792]
[1730604505804,12.84960792,161.72,161.66,12.84960792]
[1730604506087,12.84960792,161.71,161.65,60.41950792]
[1730604506382,6.1838,161.72,161.67,12.84960792]
[1730604506582,6.1828,161.74,161.69,12.84960792]
[1730604508396,19.03240792,161.74,161.68,19.03450792]
[1730604508970,12.84960792,161.73,161.68,19.03450792]
[1730604509173,12.84960792,161.73,161.68,6.1849]
[1730604511396,19.03280792,161.73,161.68,6.1849]
[1730604511704,12.84960792,161.71,161.65,75.88500792]
[1730604511882,12.84960792,161.7,161.65,32.1044]
[1730604512078,22.2403,161.72,161.65,15.4655]
[1730604512400,12.84960792,161.68,161.63,19.03640792]
[1730604512604,12.84960792,161.68,161.62,41.10100792]
[1730604512798,12.78960792,161.67,161.62,41.10100792]
[1730604512984,12.84960792,161.65,161.59,44.95950792]
[1730604513183,12.84960792,161.63,161.59,32.1099]
[1730604513378,19.03660792,161.63,161.59,15.471]
[1730604514582,12.84960792,161.6,161.57,0.2983489]
[1730604514785,6.187,161.63,161.57,0.2983489]
[1730604514786,12.84960792,161.59,161.57,0.2983489]
[1730604515506,12.84960792,161.58,161.57,0.2983489]
[1730604516701,6.1884,161.6,161.57,0.2983489]
[1730604516702,12.84960792,161.6,161.57,0.2983489]
[1730604517397,12.84960792,161.59,161.57,0.2983489]
[1730604517791,12.84960792,161.58,161.57,0.2983489]
[1730604518305,19.03840792,161.58,161.57,0.2983489]
[1730604518504,12.84960792,161.59,161.57,0.2983489]
[1730604518684,6.1877,161.61,161.57,0.2983489]
[1730604518685,12.84960792,161.58,161.57,0.2983489]
[1730604519306,12.84960792,161.59,161.57,0.2983489]
[1730604519604,12.84960792,161.58,161.57,0.2983489]
[1730604519776,12.84960792,161.59,161.57,0.2983489]
[1730604519976,12.84960792,161.58,161.57,0.2983489]
[1730604520181,12.84960792,161.59,161.57,0.2983489]
[1730604520692,6.1881,161.6,161.57,0.2983489]
[1730604520693,12.84960792,161.58,161.57,0.2983489]
[1730604521902,19.03840792,161.58,161.57,0.2983489]
[1730604522687,70.0,161.62,161.57,0.2983489]
[1730604522688,12.84960792,161.59,161.57,0.2983489]
[1730604526696,70.0,161.62,161.57,0.2983489]
[1730604526697,12.84960792,161.58,161.57,0.2983489]
[1730604527798,82.84960792,161.58,161.57,0.2983489]
[1730604529099,89.03840792,161.58,161.57,0.2983489]
[1730604530190,6.1888,161.58,161.57,0.2983489]
[1730604530398,19.03840792,161.58,161.57,0.2983489]
[1730604531998,12.84960792,161.59,161.57,0.2983489]
[1730604533527,12.84960792,161.62,161.57,19.33685682]
[1730604533801,12.84960792,161.61,161.57,6.4872489]
[1730604534010,12.84960792,161.6,161.57,6.4872489]
[1730604534303,12.84960792,161.61,161.57,6.4872489]
[1730604535504,19.03710792,161.62,161.57,19.33685682]
[1730604535839,19.03710792,161.62,161.57,6.4872489]
[1730604536112,12.84960792,161.61,161.57,6.4872489]
[1730604536798,6.1869,161.63,161.57,34.80995682]
[1730604536799,12.84960792,161.62,161.57,34.80995682]
[1730604537008,12.84960792,161.65,161.6,12.84960792]
[1730604537183,12.84960792,161.67,161.62,12.84960792]
[1730604538004,19.03470792,161.68,161.62,19.03660792]
[1730604538204,12.84960792,161.7,161.64,12.84960792]
[1730604538506,12.84960792,161.72,161.66,12.84960792]
[1730604538713,12.84960792,161.7,161.65,12.84960792]
[1730604538885,12.84960792,161.71,161.65,12.84960792]
[1730604539088,12.84960792,161.72,161.67,12.84960792]
[1730604539395,12.84960792,161.76,161.7,12.84960792]
[1730604540313,12.84960792,161.75,161.7,6.1842]
[1730604542813,19.03180792,161.76,161.7,19.03380792]
[1730604543109,12.84960792,161.78,161.72,12.84960792]
[1730604543316,19.03040792,161.79,161.73,12.84960792]
[1730604543517,19.03040792,161.79,161.74,6.1827]
[1730604543891,6.1804,161.81,161.76,12.84960792]
[1730604544090,12.84960792,161.79,161.73,19.18540792]
[1730604544395,12.84960792,161.78,161.73,6.3358]
[1730604544591,12.84960792,161.79,161.73,25.36840792]
[1730604545627,19.03080792,161.79,161.73,25.36840792]
[1730604546000,12.84960792,161.78,161.73,25.36840792]
[1730604546194,12.84960792,161.81,161.75,12.84960792]
[1730604546406,12.84960792,161.8,161.75,12.84960792]
[1730604546718,12.84960792,161.79,161.74,16.6125]
[1730604546897,12.84960792,161.79,161.74,29.46210792]
[1730604547313,12.84960792,161.79,161.73,19.18540792]
[1730604547495,12.84960792,161.75,161.7,16.6125]
[1730604547810,12.84960792,161.74,161.7,16.6125]
[1730604548015,12.84960792,161.73,161.69,21.7969]
[1730604548320,12.84960792,161.71,161.66,44.92650792]
[1730604548525,12.84960792,161.7,161.66,32.0769]
[1730604549210,12.84960792,161.71,161.66,51.11230792]
[1730604549395,12.84960792,161.72,161.66,51.11230792]
[1730604550093,12.84960792,161.71,161.66,51.11230792]
[1730604550502,12.84960792,161.73,161.67,12.84960792]
[1730604551016,12.84960792,161.72,161.66,51.11230792]
[1730604551494,12.84960792,161.72,161.67,12.84960792]
[1730604551693,12.84960792,161.72,161.67,19.03460792]
[1730604552312,12.84960792,161.72,161.67,6.185]
[1730604552710,12.84960792,161.71,161.66,38.2626]
[1730604552910,12.84960792,161.7,161.66,38.2626]
[1730604553098,12.84960792,161.72,161.67,12.84960792]
[1730604553710,12.84960792,161.7,161.66,38.2626]
[1730604554119,12.84960792,161.7,161.61,32.45684488]
[1730604554120,12.84960792,161.67,161.63,21.6537]
[1730604554324,12.84960792,161.68,161.63,21.6537]
[1730604555716,19.03460792,161.68,161.63,21.6537]
[1730604556099,12.84960792,161.69,161.64,12.84960792]